lending/lending_fUSD_20250808
["ID","MTS","AMOUNT","RATE_DAILY","PERIOD"]
[378020080,1754669489250,-400.0,0.00018395,2]
[378020081,1754669489261,-459.71,0.00018396,2]
[378020082,1754669489270,-400.0,0.00018397,2]
[378020083,1754669489280,-157.01,0.00018669,2]
[378020084,1754669489290,-400.0,0.00018669,2]
[378020085,1754669489300,-400.0,0.00018943,2]
[378020086,1754669489310,-151.0,0.00018945,2]
[378020087,1754669489320,-866.0,0.00018999,2]
[378020088,1754669489330,-151.0,0.00019,2]
[378020089,1754669489340,-9768.6982537,0.00019007,2]
[378020090,1754669489349,-151.0,0.00019205,2]
[378020091,1754669489359,-8281.9098836,0.00019205,2]
[378020092,1754669489369,-400.0,0.00019217,2]
[378020093,1754669489381,-151.0,0.00019304,2]
[378020094,1754669489390,-732.5257558,0.00019306,2]
[378020095,1754669489403,-6062.5957577,0.00019306,2]
[378020096,1754669489413,-5308.3331435,0.00019479,2]
[378020097,1754669489423,-3821.5447734,0.0001974,2]
[378020098,1754669489433,-400.0,0.00019765,2]
[378020099,1754669489443,-475.53,0.00019765,2]
[378020100,1754669489452,-715.42,0.00019765,2]
[378020101,1754669489463,-400.0,0.00019765,2]
[378020102,1754669489472,-601.22,0.00019765,2]
[378020103,1754669489482,-155.776285,0.00019765,2]
[378020104,1754669489493,-400.0,0.00019765,2]
[378020105,1754669489504,-586.59,0.00019765,2]
[378020106,1754669489514,-1231.15,0.00019765,2]
[378020107,1754669489526,-552.5,0.00019765,2]
[378020108,1754669489535,-152.542267,0.00019765,2]
[378020109,1754669489545,-2455.66,0.00019765,2]
[378020110,1754669489554,-1053.85,0.00019765,2]
[378020111,1754669489565,-224.907018,0.00019765,2]
[378020112,1754669489574,-2834.45,0.00019765,2]
[378020113,1754669489585,-905.25,0.00019765,2]
[378020114,1754669489596,-400.0,0.00019765,2]
[378020115,1754669489606,-1433.1,0.00019765,2]
[378020116,1754669489615,-257.788322,0.00019765,2]
[378020117,1754669489624,-1066.3,0.00019765,2]
[378020118,1754669489634,-1410.13,0.00019765,2]
[378020119,1754669489644,-944.36,0.00019765,2]
[378020120,1754669489653,-518.56,0.00019765,2]
[378020121,1754669489663,-1050.54,0.00019765,2]
[378020122,1754669489673,-754.73,0.00019765,2]
[378020123,1754669489683,-591.08,0.00019765,2]
[378020124,1754669489693,-1107.48,0.00019765,2]
[378020125,1754669489705,-469.73,0.00019765,2]
[378020126,1754669489716,-400.0,0.00019765,2]
[378020127,1754669489725,-3687.73,0.00019765,2]
[378020128,1754669489735,-531.1,0.00019765,2]
[378020129,1754669489745,-490.29,0.00019765,2]
[378020130,1754669489755,-834.33,0.00019765,2]
[378020131,1754669489764,-667.47,0.00019765,2]
[378020132,1754669489774,-3938.15,0.00019765,2]
[378020133,1754669489785,-2574.42,0.00019765,2]
[378020134,1754669489796,-1036.67,0.00019765,2]
[378020135,1754669489806,-1800.54,0.00019765,2]
[378020136,1754669489816,-3054.85,0.00019765,2]
[378020137,1754669489825,-1006.77,0.00019765,2]
[378020138,1754669489835,-1025.22,0.00019765,2]
[378020139,1754669489844,-640.9,0.00019765,2]
[378020140,1754669489854,-1520.44,0.00019765,2]
[378020141,1754669489864,-1142.56,0.00019765,2]
[378020142,1754669489873,-151.0,0.00019765,2]
[378020143,1754669489883,-621.81,0.00019765,2]
[378020144,1754669490478,-4083.5,0.00019765,2]
[378020145,1754669490500,-568.41,0.00019765,2]
[378020146,1754669490520,-524.35,0.00019765,2]
[378020147,1754669490543,-1661.41,0.00019765,2]
[378020148,1754669490564,-1298.89,0.00019765,2]
[378020149,1754669490580,-214.539641,0.00019765,2]
[378020150,1754669490590,-2454.24,0.00019765,2]
[378020151,1754669490600,-214.539641,0.00019765,2]
[378020152,1754669490610,-541.43,0.00019765,2]
[378020153,1754669490619,-540.08,0.00019765,2]
[378020154,1754669490629,-3674.86,0.00019765,2]
[378020155,1754669490638,-831.09,0.00019765,2]
[378020156,1754669490648,-2558.52,0.00019765,2]
[378020157,1754669490657,-400.0,0.00019765,2]
[378020158,1754669490667,-770.46,0.00019765,2]
[378020159,1754669490676,-1046.41,0.00019765,2]
[378020160,1754669490686,-931.41,0.00019765,2]
[378020161,1754669490695,-2675.43,0.00019765,2]
[378020162,1754669490708,-825.25,0.00019765,2]
[378020163,1754669490721,-151.0,0.00019765,2]
[378020164,1754669490730,-4347.41,0.00019765,2]
[378020165,1754669490740,-6608.06,0.00019765,2]
[378020166,1754669490749,-1150.05,0.00019765,2]
[378020167,1754669490759,-400.0,0.00019765,2]
[378020168,1754669490768,-1121.59,0.00019765,2]
[378020169,1754669490780,-151.0,0.00019766,2]
[378020170,1754669490791,-400.0,0.00019766,2]
[378020171,1754669490800,-152.481215,0.00019766,2]
[378020172,1754669490810,-400.0,0.00019766,2]
[378020173,1754669490820,-400.0,0.00019766,2]
[378020174,1754669490829,-400.0,0.00019766,2]
[378020175,1754669490839,-400.0,0.00019766,2]
[378020176,1754669490849,-458.84,0.00019766,2]
[378020177,1754669490858,-421.41,0.00019766,2]
[378020178,1754669490868,-306.577723,0.00019766,2]
[378020179,1754669490878,-515.38,0.00019766,2]
[378020180,1754669490888,-1006.42,0.00019766,2]
[378020181,1754669490898,-306.577723,0.00019766,2]
[378020182,1754669490908,-400.0,0.00019766,2]
[378020183,1754669490917,-1001.32,0.00019766,2]
[378020184,1754669490928,-416.27,0.00019766,2]
[378020185,1754669490937,-151.0,0.00019766,2]
[378020186,1754669490946,-400.0,0.00019766,2]
[378020187,1754669490956,-431.24,0.00019766,2]
[378020188,1754669490966,-968.12,0.00019766,2]
[378020189,1754669490975,-151.0,0.00019766,2]
[378020190,1754669490985,-531.71,0.00019766,2]
[378020191,1754669490995,-400.0,0.00019766,2]
[378020192,1754669491005,-402.79,0.00019766,2]
[378020193,1754669491014,-400.0,0.00019766,2]
[378020194,1754669491024,-839.4,0.00019766,2]
[378020195,1754669491033,-400.0,0.00019766,2]
[378020196,1754669491046,-413.42,0.00019766,2]
[378020197,1754669491057,-400.0,0.00019766,2]
[378020198,1754669491069,-1000.0,0.00019766,2]
[378020199,1754669491079,-595.6,0.00019766,2]
[378020200,1754669491088,-728.4,0.00019766,2]
[378020201,1754669491098,-457.06,0.00019766,2]
[378020202,1754669491108,-400.0,0.00019766,2]
[378020203,1754669491119,-426.5,0.00019766,2]
[378020204,1754669491129,-2865.41,0.00019766,2]
[378020205,1754669491138,-400.0,0.00019766,2]
[378020206,1754669491147,-400.0,0.00019766,2]
[378020207,1754669491156,-433.99,0.00019766,2]
[378020208,1754669491166,-1025.98,0.00019766,2]
[378020209,1754669491175,-578.59,0.00019766,2]
[378020210,1754669491184,-400.0,0.00019766,2]
[378020211,1754669491194,-568.96,0.00019766,2]
[378020212,1754669491204,-151.0,0.00019766,2]
[378020213,1754669491215,-400.0,0.00019766,2]
[378020214,1754669491224,-400.0,0.00019766,2]
[378020215,1754669491233,-1746.19,0.00019766,2]
[378020216,1754669491243,-400.0,0.00019766,2]
[378020217,1754669491253,-868.12,0.00019766,2]
[378020218,1754669491262,-248.861292,0.00019766,2]
[378020219,1754669491271,-583.5,0.00019766,2]
[378020220,1754669491280,-400.0,0.00019766,2]
[378020221,1754669491290,-511.52,0.00019766,2]
[378020222,1754669491299,-976.11,0.00019766,2]
[378020223,1754669491309,-782.74,0.00019766,2]
[378020224,1754669491318,-400.0,0.00019766,2]
[378020225,1754669491328,-528.81,0.00019766,2]
[378020226,1754669491337,-400.0,0.00019766,2]
[378020227,1754669491347,-400.0,0.00019766,2]
[378020228,1754669491356,-971.0,0.00019766,2]
[378020229,1754669491366,-151.0,0.00019766,2]
[378020230,1754669491375,-400.0,0.00019766,2]
[378020231,1754669491385,-497.24,0.00019766,2]
[378020232,1754669491395,-1328.31,0.00019766,2]
[378020233,1754669491404,-400.0,0.00019766,2]
[378020234,1754669491414,-492.66,0.00019766,2]
[378020235,1754669491423,-400.0,0.00019766,2]
[378020236,1754669491432,-400.0,0.00019766,2]
[378020237,1754669491441,-400.0,0.00019766,2]
[378020238,1754669491451,-429.63021314,0.00019766,2]
[378020239,1754669491460,-226.685624,0.00019766,2]
[378020240,1754669491469,-536.48,0.00019766,2]
[378020241,1754669491478,-226.685624,0.00019766,2]
[378020242,1754669491488,-400.0,0.00019766,2]
[378020243,1754669491498,-1060.74,0.00019766,2]
[378020244,1754669491507,-400.0,0.00019766,2]
[378020245,1754669491517,-181.743336,0.00019766,2]
[378020246,1754669491525,-857.42,0.00019766,2]
[378020247,1754669491534,-400.0,0.00019766,2]
[378020248,1754669491543,-400.0,0.00019766,2]
[378020249,1754669491553,-400.0,0.00019766,2]
[378020250,1754669491562,-181.743336,0.00019766,2]
[378020251,1754669491571,-1331.55,0.00019766,2]
[378020252,1754669491579,-151.0,0.00019766,2]
[378020253,1754669491590,-625.23,0.00019766,2]
[378020254,1754669491599,-400.0,0.00019766,2]
[378020255,1754669491608,-453.72,0.00019766,2]
[378020256,1754669491617,-425.8,0.00019766,2]
[378020257,1754669491627,-151.0,0.00019766,2]
[378020258,1754669491636,-596.31,0.00019766,2]
[378020259,1754669491646,-400.0,0.00019766,2]
[378020260,1754669491657,-538.89,0.00019766,2]
[378020261,1754669491667,-400.0,0.00019766,2]
[378020262,1754669491677,-402.64,0.00019766,2]
[378020263,1754669491687,-400.0,0.00019766,2]
[378020264,1754669491699,-1320.59,0.00019766,2]
[378020265,1754669491715,-400.0,0.00019766,2]
[378020266,1754669491725,-908.21,0.00019766,2]
[378020267,1754669491735,-896.71,0.00019766,2]
[378020268,1754669491745,-400.0,0.00019766,2]
[378020269,1754669491754,-400.0,0.00019766,2]
[378020270,1754669491764,-420.23,0.00019766,2]
[378020271,1754669491774,-3958.88,0.00019766,2]
[378020272,1754669491787,-868.76,0.00019766,2]
[378020273,1754669491796,-486.29,0.00019766,2]
[378020274,1754669491806,-400.0,0.00019766,2]
[378020275,1754669491816,-400.0,0.00019766,2]
[378020276,1754669491825,-400.0,0.00019766,2]
[378020277,1754669491835,-400.0,0.00019766,2]
[378020278,1754669491844,-496.3,0.00019766,2]
[378020279,1754669491853,-525.45,0.00019766,2]
[378020280,1754669491863,-544.9,0.00019766,2]
[378020281,1754669491873,-400.0,0.00019766,2]
[378020282,1754669491882,-788.21,0.00019766,2]
[378020283,1754669491892,-1540.06,0.00019766,2]
[378020284,1754669491902,-491.6,0.00019766,2]
[378020285,1754669491911,-400.0,0.00019766,2]
[378020286,1754669491921,-1676.13,0.00019766,2]
[378020287,1754669491930,-400.0,0.00019766,2]
[378020288,1754669491940,-406.38,0.00019766,2]
[378020289,1754669491949,-400.0,0.00019766,2]
[378020290,1754669491958,-400.0,0.00019766,2]
[378020291,1754669491969,-400.0,0.00019766,2]
[378020292,1754669491979,-1543.92,0.00019766,2]
[378020293,1754669491988,-1771.46,0.00019766,2]
[378020294,1754669491997,-1276.24,0.00019766,2]
[378020295,1754669492006,-1834.76,0.00019766,2]
[378020296,1754669492015,-910.98,0.00019766,2]
[378020297,1754669492024,-526.59,0.00019766,2]
[378020298,1754669492034,-400.0,0.00019766,2]
[378020299,1754669492045,-155.03466,0.00019766,2]
[378020300,1754669492054,-400.0,0.00019766,2]
[378020301,1754669492063,-404.83,0.00019766,2]
[378020302,1754669492072,-1444.29,0.00019766,2]
[378020303,1754669492083,-615.62,0.00019766,2]
[378020304,1754669492093,-1214.78,0.00019766,2]
[378020305,1754669492102,-400.0,0.00019766,2]
[378020306,1754669492111,-400.0,0.00019766,2]
[378020307,1754669492120,-1013.06,0.00019766,2]
[378020308,1754669492131,-497.84,0.00019766,2]
[378020309,1754669492141,-410.74,0.00019766,2]
[378020310,1754669492151,-400.0,0.00019766,2]
[378020311,1754669492160,-671.65,0.00019766,2]
[378020312,1754669492169,-460.1,0.00019766,2]
[378020313,1754669492179,-3405.28,0.00019766,2]
[378020314,1754669492190,-400.0,0.00019766,2]
[378020315,1754669492199,-420.14,0.00019766,2]
[378020316,1754669492208,-833.41,0.00019766,2]
[378020317,1754669492220,-400.0,0.00019766,2]
[378020318,1754669492230,-1142.08,0.00019766,2]
[378020319,1754669492240,-400.0,0.00019766,2]
[378020320,1754669492250,-777.18,0.00019766,2]
[378020321,1754669492260,-1516.44,0.00019766,2]
[378020322,1754669492270,-454.23,0.00019766,2]
[378020323,1754669492280,-151.0,0.00019766,2]
[378020324,1754669492290,-400.0,0.00019766,2]
[378020325,1754669492299,-1407.46,0.00019766,2]
[378020326,1754669492309,-4624.2,0.00019766,2]
[378020327,1754669492318,-400.0,0.00019766,2]
[378020328,1754669492327,-1458.34,0.00019766,2]
[378020329,1754669492337,-1220.89,0.00019766,2]
[378020330,1754669492346,-422.1,0.00019766,2]
[378020331,1754669492356,-151.0,0.00019766,2]
[378020332,1754669492365,-686.63,0.00019766,2]
[378020333,1754669492374,-1283.29,0.00019766,2]
[378020334,1754669492384,-1271.52,0.00019766,2]
[378020335,1754669492394,-400.0,0.00019766,2]
[378020336,1754669492403,-1531.74,0.00019766,2]
[378020337,1754669492413,-1320.06,0.00019766,2]
[378020338,1754669492422,-466.82,0.00019766,2]
[378020339,1754669492431,-1421.75,0.00019766,2]
[378020340,1754669492440,-455.48,0.00019766,2]
[378020341,1754669492449,-894.63,0.00019766,2]
[378020342,1754669492459,-400.0,0.00019766,2]
[378020343,1754669492472,-400.0,0.00019766,2]
[378020344,1754669492482,-995.6,0.00019766,2]
[378020345,1754669492491,-400.0,0.00019766,2]
[378020346,1754669492500,-943.62,0.00019766,2]
[378020347,1754669492510,-3181.7,0.00019766,2]
[378020348,1754669492519,-400.0,0.00019766,2]
[378020349,1754669492529,-577.69,0.00019766,2]
[378020350,1754669492538,-400.0,0.00019766,2]
[378020351,1754669492548,-474.82,0.00019766,2]
[378020352,1754669492557,-3907.01,0.00019766,2]
[378020353,1754669492567,-400.0,0.00019766,2]
[378020354,1754669492577,-400.0,0.00019766,2]
[378020355,1754669492586,-447.25,0.00019766,2]
[378020356,1754669492595,-4881.55,0.00019766,2]
[378020357,1754669492605,-400.0,0.00019766,2]
[378020358,1754669492614,-400.0,0.00019766,2]
[378020359,1754669492623,-3961.85,0.00019766,2]
[378020360,1754669492632,-607.19,0.00019766,2]
[378020361,1754669492642,-1995.27,0.00019766,2]
[378020362,1754669492651,-400.0,0.00019766,2]
[378020363,1754669492660,-400.0,0.00019766,2]
[378020364,1754669492669,-1748.15,0.00019766,2]
[378020365,1754669492678,-2151.79,0.00019766,2]
[378020366,1754669492687,-1071.34,0.00019766,2]
[378020367,1754669492697,-776.47,0.00019766,2]
[378020368,1754669492710,-4368.67,0.00019766,2]
[378020369,1754669492722,-400.0,0.00019766,2]
[378020370,1754669492731,-455.24,0.00019766,2]
[378020371,1754669492740,-400.0,0.00019766,2]
[378020372,1754669492751,-454.28,0.00019766,2]
[378020373,1754669492760,-400.0,0.00019766,2]
[378020374,1754669492769,-572.22,0.00019766,2]
[378020375,1754669492779,-1655.65,0.00019766,2]
[378020376,1754669492789,-552.11,0.00019766,2]
[378020377,1754669492799,-5326.54,0.00019766,2]
[378020378,1754669492808,-1353.03,0.00019766,2]
[378020379,1754669492818,-400.0,0.00019766,2]
[378020380,1754669492827,-400.0,0.00019766,2]
[378020381,1754669492837,-1787.09,0.00019766,2]
[378020382,1754669492847,-400.0,0.00019766,2]
[378020383,1754669492857,-437.4,0.00019766,2]
[378020384,1754669492867,-1818.29,0.00019766,2]
[378020385,1754669492876,-448.37,0.00019766,2]
[378020386,1754669492885,-400.0,0.00019766,2]
[378020387,1754669492894,-151.0,0.00019766,2]
[378020388,1754669492903,-1169.93,0.00019766,2]
[378020389,1754669492913,-3083.31,0.00019766,2]
[378020390,1754669492922,-2127.79,0.00019766,2]
[378020391,1754669492931,-509.83,0.00019766,2]
[378020392,1754669492940,-400.0,0.00019766,2]
[378020393,1754669492949,-400.0,0.00019766,2]
[378020394,1754669492959,-836.42,0.00019766,2]
[378020395,1754669492969,-740.05,0.00019766,2]
[378020396,1754669492978,-1017.06,0.00019766,2]
[378020397,1754669492987,-400.0,0.00019766,2]
[378020398,1754669492997,-3318.81,0.00019766,2]
[378020399,1754669493006,-1132.27,0.00019766,2]
[378020400,1754669493015,-1001.22,0.00019766,2]
[378020401,1754669493025,-501.43,0.00019766,2]
[378020402,1754669493034,-633.86,0.00019766,2]
[378020403,1754669493044,-471.36,0.00019766,2]
[378020404,1754669493053,-862.04,0.00019766,2]
[378020405,1754669493063,-1748.49,0.00019766,2]
[378020406,1754669493072,-400.0,0.00019766,2]
[378020407,1754669493082,-2373.25,0.00019766,2]
[378020408,1754669493091,-1280.13,0.00019766,2]
[378020409,1754669493101,-1010.24,0.00019766,2]
[378020410,1754669493111,-1499.55,0.00019766,2]
[378020411,1754669493120,-1166.4,0.00019766,2]
[378020412,1754669493129,-660.66,0.00019766,2]
[378020413,1754669493139,-7523.23,0.00019766,2]
[378020414,1754669493148,-1342.86,0.00019766,2]
[378020415,1754669493158,-247.952829,0.00019766,2]
[378020416,1754669493167,-400.0,0.00019766,2]
[378020417,1754669493177,-439.65,0.00019766,2]
[378020418,1754669493187,-591.38,0.00019766,2]
[378020419,1754669493196,-151.0,0.00019766,2]
[378020420,1754669493206,-1524.08,0.00019766,2]
[378020421,1754669493218,-247.952829,0.00019766,2]
[378020422,1754669493227,-809.05,0.00019766,2]
[378020423,1754669493237,-151.0,0.00019766,2]
[378020424,1754669493247,-400.0,0.00019766,2]
[378020425,1754669493257,-5829.92,0.00019766,2]
[378020426,1754669493267,-1761.37,0.00019766,2]
[378020427,1754669493276,-1610.05,0.00019766,2]
[378020428,1754669493286,-755.11,0.00019766,2]
[378020429,1754669493296,-643.37,0.00019766,2]
[378020430,1754669493305,-764.46,0.00019766,2]
[378020431,1754669493314,-985.59,0.00019766,2]
[378020432,1754669493324,-4533.75,0.00019766,2]
[378020433,1754669493333,-543.79,0.00019766,2]
[378020434,1754669493343,-1461.07,0.00019766,2]
[378020435,1754669493353,-577.86,0.00019766,2]
[378020436,1754669493362,-1394.99,0.00019766,2]
[378020437,1754669493372,-3292.99,0.00019766,2]
[378020438,1754669493382,-745.45,0.00019766,2]
[378020439,1754669493392,-630.01,0.00019766,2]
[378020440,1754669493401,-591.75,0.00019766,2]
[378020441,1754669493411,-400.0,0.00019766,2]
[378020442,1754669493420,-1002.257171,0.00019766,2]
[378020443,1754669493430,-400.0,0.00019766,2]
[378020444,1754669493439,-571.59,0.00019766,2]
[378020445,1754669493449,-1230.51,0.00019766,2]
[378020446,1754669493459,-1458.03,0.00019766,2]
[378020447,1754669493470,-922.39,0.00019766,2]
[378020448,1754669493480,-1002.257171,0.00019766,2]
[378020449,1754669493490,-5116.24,0.00019766,2]
[378020450,1754669493500,-400.0,0.00019766,2]
[378020451,1754669493510,-1077.25,0.00019766,2]
[378020452,1754669493521,-888.02,0.00019766,2]
[378020453,1754669493530,-1973.55,0.00019766,2]
[378020454,1754669493541,-1296.8,0.00019766,2]
[378020455,1754669493551,-400.0,0.00019766,2]
[378020456,1754669493560,-510.38,0.00019766,2]
[378020457,1754669493570,-1075.57,0.00019766,2]
[378020458,1754669493580,-572.6,0.00019766,2]
[378020459,1754669493589,-638.9,0.00019766,2]
[378020460,1754669493599,-5597.06,0.00019766,2]
[378020461,1754669493609,-400.0,0.00019766,2]
[378020462,1754669493619,-450.68,0.00019766,2]
[378020463,1754669493629,-533.21,0.00019766,2]
[378020464,1754669493639,-663.4,0.00019766,2]
[378020465,1754669493649,-400.0,0.00019766,2]
[378020466,1754669493660,-3195.32,0.00019766,2]
[378020467,1754669493670,-3288.41,0.00019766,2]
[378020468,1754669493680,-3790.94,0.00019766,2]
[378020469,1754669493690,-526.43,0.00019766,2]
[378020470,1754669493707,-410.16,0.00019766,2]
[378020471,1754669493717,-151.0,0.00019767,2]
[378020472,1754669493727,-151.0,0.00019767,2]
[378020473,1754669493737,-151.0,0.00019767,2]
[378020474,1754669493748,-400.0,0.00019767,2]
[378020475,1754669493759,-408.84,0.00019767,2]
[378020476,1754669493769,-400.0,0.00019767,2]
[378020477,1754669493780,-400.0,0.00019767,2]
[378020478,1754669493962,-520.89,0.00019767,2]
[378020479,1754669493985,-400.0,0.00019767,2]
[378020480,1754669493995,-578.65,0.00019767,2]
[378020481,1754669494004,-400.0,0.00019767,2]
[378020482,1754669494014,-400.0,0.00019767,2]
[378020483,1754669494023,-400.0,0.00019767,2]
[378020484,1754669494032,-400.0,0.00019767,2]
[378020485,1754669494042,-438.64,0.00019767,2]
[378020486,1754669494052,-400.0,0.00019767,2]
[378020487,1754669494062,-400.0,0.00019767,2]
[378020488,1754669494071,-431.02,0.00019767,2]
[378020489,1754669494080,-453.32,0.00019767,2]
[378020490,1754669494090,-528.12,0.00019767,2]
[378020491,1754669494099,-200.83832559,0.00019767,2]
[378020492,1754669494109,-400.0,0.00019767,2]
[378020493,1754669494119,-400.0,0.00019767,2]
[378020494,1754669494128,-414.55,0.00019767,2]
[378020495,1754669494138,-501.96,0.00019767,2]
[378020496,1754669494148,-502.35,0.00019767,2]
[378020497,1754669494157,-400.0,0.00019767,2]
[378020498,1754669494167,-400.0,0.00019767,2]
[378020499,1754669494177,-400.0,0.00019767,2]
[378020500,1754669494186,-400.0,0.00019767,2]
[378020501,1754669494195,-400.0,0.00019767,2]
[378020502,1754669494205,-537.65,0.00019767,2]
[378020503,1754669494215,-436.33,0.00019767,2]
[378020504,1754669494225,-400.0,0.00019767,2]
[378020505,1754669494234,-579.55,0.00019767,2]
[378020506,1754669494243,-400.0,0.00019767,2]
[378020507,1754669494252,-400.0,0.00019767,2]
[378020508,1754669494262,-400.0,0.00019767,2]
[378020509,1754669494271,-492.40308192,0.00019767,2]
[378020510,1754669494280,-400.0,0.00019767,2]
[378020511,1754669494289,-400.0,0.00019767,2]
[378020512,1754669494298,-400.0,0.00019767,2]
[378020513,1754669494308,-662.47,0.00019767,2]
[378020514,1754669494317,-458.85,0.00019767,2]
[378020515,1754669494326,-400.0,0.00019767,2]
[378020516,1754669494336,-400.0,0.00019767,2]
[378020517,1754669494345,-400.0,0.00019767,2]
[378020518,1754669494355,-400.0,0.00019767,2]
[378020519,1754669494364,-400.0,0.00019767,2]
[378020520,1754669494374,-400.0,0.00019767,2]
[378020521,1754669494384,-433.69,0.00019767,2]
[378020522,1754669494393,-400.0,0.00019767,2]
[378020523,1754669494402,-400.0,0.00019767,2]
[378020524,1754669494412,-547.84,0.00019767,2]
[378020525,1754669494421,-400.0,0.00019767,2]
[378020526,1754669494430,-400.0,0.00019767,2]
[378020527,1754669494440,-400.0,0.00019767,2]
[378020528,1754669494449,-1483.89,0.00019767,2]
[378020529,1754669494459,-452.85,0.00019767,2]
[378020530,1754669494471,-518.62,0.00019767,2]
[378020531,1754669494480,-408.77,0.00019767,2]
[378020532,1754669494490,-400.0,0.00019767,2]
[378020533,1754669494499,-476.02,0.00019767,2]
[378020534,1754669494509,-419.4,0.00019767,2]
[378020535,1754669494519,-400.0,0.00019767,2]
[378020536,1754669494529,-400.0,0.00019767,2]
[378020537,1754669494538,-400.0,0.00019767,2]
[378020538,1754669494548,-300.0,0.00019767,2]
[378020539,1754669494558,-400.0,0.00019767,2]
[378020540,1754669494567,-5082.64,0.00019767,2]
[378020541,1754669494578,-526.3,0.00019767,2]
[378020542,1754669494587,-493.26,0.00019767,2]
[378020543,1754669494597,-1574.43,0.00019767,2]
[378020544,1754669494606,-400.0,0.00019767,2]
[378020545,1754669494615,-470.32,0.00019767,2]
[378020546,1754669494625,-499.17,0.00019767,2]
[378020547,1754669494635,-400.0,0.00019767,2]
[378020548,1754669494644,-1383.82,0.00019767,2]
[378020549,1754669494653,-489.28,0.00019767,2]
[378020550,1754669494663,-865.71,0.00019767,2]
[378020551,1754669494672,-400.0,0.00019767,2]
[378020552,1754669494681,-763.19,0.00019767,2]
[378020553,1754669494691,-436.71,0.00019767,2]
[378020554,1754669494701,-1642.57,0.00019767,2]
[378020555,1754669494713,-414.27,0.00019767,2]
[378020556,1754669494722,-582.35,0.00019767,2]
[378020557,1754669494732,-421.87500172,0.00019767,2]
[378020558,1754669494742,-502.3,0.00019767,2]
[378020559,1754669494752,-400.0,0.00019767,2]
[378020560,1754669494762,-554.21,0.00019767,2]
[378020561,1754669494772,-536.27,0.00019767,2]
[378020562,1754669494782,-400.0,0.00019767,2]
[378020563,1754669494792,-400.0,0.00019767,2]
[378020564,1754669494802,-438.89,0.00019767,2]
[378020565,1754669494811,-760.61,0.00019767,2]
[378020566,1754669494821,-1278.86,0.00019767,2]
[378020567,1754669494830,-772.31,0.00019767,2]
[378020568,1754669494840,-400.0,0.00019767,2]
[378020569,1754669494849,-400.0,0.00019767,2]
[378020570,1754669494858,-3084.06,0.00019767,2]
[378020571,1754669494868,-400.0,0.00019767,2]
[378020572,1754669494878,-534.26,0.00019767,2]
[378020573,1754669494887,-537.01,0.00019767,2]
[378020574,1754669494897,-400.0,0.00019767,2]
[378020575,1754669494907,-400.0,0.00019767,2]
[378020576,1754669494916,-693.11,0.00019767,2]
[378020577,1754669494926,-400.0,0.00019767,2]
[378020578,1754669494935,-11768.25,0.00019767,2]
[378020579,1754669494945,-400.0,0.00019767,2]